Cogmind - Beta 13 @@@ ROGUE MODE // 2024.05.02 @ 09:25:33 Player: Wesmed Result: Self-destructed Performance ------------- Evolutions (1) 500 Regions Visited (2) 400 Robots Destroyed (22) 110 Value Destroyed (406) 406 Prototype IDs (1) 20 Alien Tech Used (0) 0 Bonus (0) 0 TOTAL SCORE: 1436 Bonus ------- None Cogmind --------- Core Integrity 273/400 Matter 262/300 Energy 100/100 System Corruption 0% Temperature Warm (159) Movement Rolling (110) Ox2 Location -9/Materials Parts ------- > --- POWER (1) -------- (None) > --- PROPULSION (2) --- Wheel > --- UTILITY (4) ------ Medium Storage Unit Structural Scanner Signal Interpreter Light Armor Plating > --- WEAPON (2) ------- Ion Cannon Heavy Assault Rifle > --- INVENTORY (10) --- Ion Engine Ion Engine Wheel Improved Heat Sink Improved Terrain Scanner Light Armor Plating Light Assault Rifle Heavy Assault Rifle Improved Datajack Mining Claw Peak State ------------ > --- POWER ------------ Ion Engine > --- PROPULSION ------- Wheel Wheel > --- UTILITY ---------- Improved Heat Sink Medium Storage Unit Signal Interpreter Light Armor Plating > --- WEAPON ----------- Beam Rifle Heavy Assault Rifle > --- INVENTORY -------- Ion Engine Ion Engine Wheel Heat Sink Structural Scanner Improved Terrain Scanner Light Armor Plating Light Assault Rifle Heavy Assault Rifle Mining Claw [Rating: 14] Favorites ----------- Power Ion Engine Engine Ion Engine Propulsion Wheel Wheel Wheel Utility Structural Scanner Device Structural Scanner Storage Medium Storage Unit Processor Signal Interpreter Protection Light Armor Plating Weapon Light Assault Rifle Energy Gun Medium Laser Energy Cannon Ion Cannon Ballistic Gun Light Assault Rifle Slashing Weapon Mining Claw Build | -11 -10 -9 ------- Run | Yrd Mat Mat Slots Evolved 2 | . . 2 Power . | . . . Propulsion . | . . . Utility 2 | . . 2 Weapon . | . . . Parts Attached 28 | 7 11 10 Power 3 | . 3 . Engine 3 | . 3 . Core . | . . . Reactor . | . . . Propulsion 7 | 3 3 1 Treads . | . . . Leg . | . . . Wheel 7 | 3 3 1 Hover . | . . . Flight . | . . . Utility 11 | 2 3 6 Device 5 | 1 2 2 Storage 2 | 1 1 . Processor 1 | . . 1 Hackware . | . . . Protection 3 | . . 3 Artifact . | . . . Weapon 7 | 2 2 3 Energy Gun 2 | 1 . 1 Energy Cannon 1 | . . 1 Ballistic Gun 3 | 1 1 1 Ballistic Cannon . | . . . Launcher . | . . . Special Weapon . | . . . Impact Weapon . | . . . Slashing Weapon 1 | . 1 . Piercing Weapon . | . . . Special Melee Weapon . | . . . Unidentified Prototypes . | . . . Parts Lost 7 | . 5 2 Power 1 | . . 1 Propulsion 3 | . 2 1 Utility 1 | . 1 . Weapon 2 | . 2 . Highest Loss Streak 4 | . 4 2 To Critical Strikes . | . . . Average Slot Usage (%) 95 | . 93 99 Engine 11 | . 12 10 Wheel 24 | . 27 21 Device 11 | . 12 11 Storage 12 | . 14 11 Processor 4 | . . 11 Protection 4 | . . 11 Energy Gun 5 | . 8 2 Ballistic Gun 14 | . 16 11 Slashing Weapon 4 | . 1 7 Naked Turns . | . . . Heaviest Build 28 | 10 19 28 Greatest Support 20 | 20 20 20 Greatest Overweight (x) 1 | . . 1 Average Overweight (x) . | . . 1 Largest Inventory Capacity 10 | 8 10 10 Average Capacity 9 | 7 8 10 Most Carried 10 | 6 10 10 Average Carried 7 | 2 7 9 Final Capacity 10 | 8 10 10 Final Carried 10 | 6 10 10 Class Distribution -------------------- 52% | Scavenger-Mutant 47% | Mutant Dominant Class ---------------- Mutant | -10/Materials Scavenger-Mutant | -9/Materials Resources | -11 -10 -9 ----------- Run | Yrd Mat Mat Matter Collected 615 | 219 257 139 Remotely . | . . . Salvage Created 611 | 25 299 287 Parts 59 | 8 23 28 Haulers Intercepted 1 | . 1 . Recyclers Shooed 2 | 1 1 . Parts Field Recycled . | . . . Retrieved Matter . | . . . Parts Self-Destructed . | . . . Prevented . | . . . Kills | -11 -10 -9 ------- Run | Yrd Mat Mat Combat Hostiles Destroyed 14 | . 7 7 Melee 2 | . . 2 Guns 12 | . 7 5 Classes Destroyed 7 | 1 5 1 Builder 3 | . 1 2 Tunneler 2 | 2 . . Hauler 1 | . 1 . Watcher 2 | . 1 1 Swarmer 7 | . 3 4 Grunt 5 | . 4 1 Sentry 2 | . . 2 Best Kill Streak 7 | 2 4 7 Combat Bots Only 4 | . 3 4 Max Kills in Single Turn 1 | 1 1 1 Gunslinging . | . . . Exploded . | . . . Melee 1 | . . 1 Uniques/NPCs Destroyed . | . . . Combat | -11 -10 -9 -------- Run | Yrd Mat Mat Hostile Shots Fired 128 | . 51 77 Missed 28 | . 8 20 Damage Taken 1177 | . 620 557 Core 271 | . 144 127 Absorbed by Shields . | . . . Core Remaining (%) 71 | 100 42 . Volleys Fired 80 | 4 51 25 Largest 2 | 2 2 2 Hottest 83 | 70 70 83 Shots Fired 137 | 8 79 50 Gun 131 | 8 79 44 Cannon 6 | . . 6 Launcher . | . . . Special . | . . . Kinetic 94 | 4 65 25 Thermal 43 | 4 14 25 Explosive . | . . . Electromagnetic . | . . . Robot Hit Streak 14 | 1 7 14 Robot Miss Streak 7 | 2 7 3 Penetration Max . | . . . Secondary Targets 3 | . 1 2 Max Gunslinging Chain 1 | . 1 1 Shots Hit Robots 92 | 3 51 38 Core Hits 35 | 3 20 12 Critical Kills . | . . . Critical Parts Destroyed . | . . . Critical Strikes 2 | . 1 1 Burn 2 | . 1 1 Melee Attacks 11 | . . 11 Impact . | . . . Slashing 11 | . . 11 Piercing . | . . . Sneak Attacks 2 | . . 2 Combat Hostiles . | . . . Follow-up Attacks . | . . . Damage Inflicted 1266 | 40 539 687 Guns 1002 | 40 539 423 Cannons 118 | . . 118 Explosions . | . . . Melee 146 | . . 146 Ramming . | . . . Kinetic 668 | 14 415 239 Thermal 452 | 26 124 302 Explosive . | . . . Electromagnetic . | . . . Impact . | . . . Slashing 146 | . . 146 Piercing . | . . . Highest Corruption . | . . . Average Corruption . | . . . Corruption Purged . | . . . Corruption Blocked . | . . . Overload Shots . | . . . Overflow Damage 40 | . . 40 Projectiles . | . . . Explosions . | . . . Melee 40 | . . 40 Knockbacks . | . . . Impact . | . . . Kinetic . | . . . Secondary . | . . . Self-Inflicted Damage . | . . . Shots . | . . . Rammed . | . . . Targets Rammed . | . . . Kicked . | . . . Crushed . | . . . Highest Temperature 159 | . 31 159 Average Temperature 29 | . 13 68 Received Heat Transfer 351 | . 276 75 Siege Activations . | . . . Robots Corrupted . | . . . Combat Hostiles . | . . . Parts Fried . | . . . Impact Corruptions . | . . . Robots Melted . | . . . Combat Hostiles . | . . . Parts Melted 1 | . 1 . Heat Transferred 1258 | 74 444 740 Parts Sabotaged . | . . . Parts Stolen . | . . . Parts Stripped . | . . . Power Chain Reactions . | . . . Alert | -11 -10 -9 ------- Run | Yrd Mat Mat Peak Influence 204 | 10 179 204 Initial 50 | . 6 50 Average 100 | 3 99 113 Maximum Alert Level 1 | . . 1 Low Security (%) 99 | 100 100 99 Level 1 . | . . . Level 2 . | . . . Level 3 . | . . . Level 4 . | . . . Level 5 . | . . . High Security . | . . . Max Security . | . . . Squads Dispatched 1 | . 1 . Investigation . | . . . Extermination . | . . . Reinforcement 1 | . 1 . Assault . | . . . Garrison . | . . . Intercept . | . . . Searches Triggered . | . . . Construction Impeded . | . . . Haulers Reinforced . | . . . Active Scanning Responses . | . . . Cargo Convoy Interrupts . | . . . Stealth | -11 -10 -9 --------- Run | Yrd Mat Mat Distress Signals 1 | . . 1 Communications Jammed . | . . . Distress Signals . | . . . Times Spotted 40 | . 18 22 Peak Tracking Total 10 | . 3 10 Tactical Retreats 4 | . 3 1 Traps | -11 -10 -9 ------- Run | Yrd Mat Mat Traps Triggered 2 | . 2 . Indirectly . | . . . Trap Hack Attempts . | . . . Triggered . | . . . Disarmed . | . . . Reprogrammed . | . . . Reused . | . . . Traps Extracted . | . . . Installed . | . . . Triggered . | . . . Machines | -11 -10 -9 ---------- Run | Yrd Mat Mat Machines Disabled . | . . . Max in Single Turn . | . . . Machines Repaired . | . . . Machines Dismantled . | . . . Machines Sabotaged . | . . . Overloaded Fab Kills . | . . . Hacking | -11 -10 -9 --------- Run | Yrd Mat Mat Machines Accessed 7 | . 5 2 Terminals 6 | . 5 1 Fabricators . | . . . Repair Stations . | . . . Recycling Units . | . . . Scanalyzers 1 | . . 1 Garrison Access . | . . . Total Hacks 20 | . 11 9 Successful 6 | . 3 3 Failed 14 | . 8 6 Catastrophic 3 | . 1 2 Database Lockouts . | . . . Manual 16 | . 11 5 Terminals 16 | . 11 5 Fabricators . | . . . Repair Stations . | . . . Recycling Units . | . . . Scanalyzers 4 | . . 4 Garrison Access . | . . . Terminal Hacks 1 | . 1 . Branch Access Points 1 | . 1 . Fabricator Hacks . | . . . Repair Station Hacks . | . . . Recycling Unit Hacks . | . . . Scanalyzer 2 | . . 2 Insert Component 2 | . . 2 Garrison Access Hacks . | . . . Unauthorized Hacks 3 | . 2 1 Terminals 3 | . 2 1 Botnet 3 | . 2 1 Fabricators . | . . . Repair Stations . | . . . Recycling Units . | . . . Scanalyzers . | . . . Garrison Access . | . . . Data Cores Recovered . | . . . Used . | . . . Hacking Detections 6 | . 4 2 Full Trace Events . | . . . Feedback Events . | . . . Feedback Blocked . | . . . Robot Schematics Acquired . | . . . Robots Built . | . . . Authchips . | . . . Time . | . . . Total Robot Build Rating . | . . . Part Schematics Acquired . | . . . Parts Built . | . . . Authchips . | . . . Time . | . . . Total Part Build Rating . | . . . Parts Repaired . | . . . Time . | . . . Parts Recycled . | . . . Recycled Matter . | . . . Retrieved Matter . | . . . Retrieved Components . | . . . Parts Scanalyzed 1 | . . 1 Part Schematics Acquired . | . . . Parts Damaged 1 | . . 1 Bothacking | -11 -10 -9 ------------ Run | Yrd Mat Mat Used RIF Installer . | . . . Robots Hacked . | . . . Non-combat . | . . . Combat . | . . . Robot Hacks Applied . | . . . Relay Couplers Released . | . . . Fabnet Peak Effective % . | . . . Robots Rewired . | . . . Allies Hacked . | . . . Hacks Repelled . | . . . Allies | -11 -10 -9 -------- Run | Yrd Mat Mat Total Allies . | . . . Largest Group . | . . . Highest-Rated Group . | . . . Highest-Rated Ally . | . . . Total Orders . | . . . Ally Attacks . | . . . Total Damage . | . . . Kills . | . . . Allies Corrupted . | . . . Allies Melted . | . . . Intel | -11 -10 -9 ------- Run | Yrd Mat Mat Robot Analysis Total . | . . . Derelict Logs Recovered . | . . . Drone Launches . | . . . Drone Recoveries . | . . . Exploration | -11 -10 -9 ------------- Run | Yrd Mat Mat Turns Passed 1309 | 71 685 553 Spaces Moved 956 | 56 493 407 Core 2 | 2 . . Treads . | . . . Legs . | . . . Wheels 954 | 54 493 407 Hover . | . . . Flight . | . . . Fastest Speed 50 | 50 80 95 Average Speed 86 | 78 80 95 Slowest Speed 95 | 80 80 95 Overloaded Moves . | . . . Propulsion Burnouts . | . . . Robots Hopped . | . . . Cave-ins Triggered . | . . . Exploration Rate (%) 28 | 3 56 25 Regions Visited 2 Branch Regions . Pre-discovered Areas . | . . . Known Exits Taken . | . . . Unknown Exits Taken 2 | 1 1 . Scrap Searched . | . . . Spaces Dug 4 | . . 4 Terrain Destroyed 5 | . . 5 Melee 4 | . . 4 Projectile 1 | . . 1 AOE . | . . . Terrain Rammed . | . . . Walls Destroyed . | . . . Machines Disabled . | . . . Actions | -11 -10 -9 --------- Run | Yrd Mat Mat Total 1286 | 71 710 505 Wait 178 | . 142 36 Move 954 | 55 492 407 Hop . | . . . Pick Up 20 | 5 9 6 Fast Attach 10 | 6 3 1 Attach 5 | . 3 2 Detach . | . . . Swap 13 | 1 5 7 Drop 15 | . 5 10 Fire 80 | 4 51 25 Melee 11 | . . 11 Ram . | . . . Kick . | . . . Crush . | . . . Escape Stasis . | . . . Rewire . | . . . Trap . | . . . Miscellaneous . | . . . Route ------- -11/Scrapyard -10/Materials (discovered 3 exits: *Mat / *Min x2) -9/Materials (discovered 1 exit: [*Min]) History --------- Turn | Location | Event 19 | -11/Scrapyard | Discovered new exit (range 15) 72 | -11/Scrapyard | Entered Materials 322 | -10/Materials | Build established: Mutant 498 | -10/Materials | Discovered new exit (range 5) 507 | -10/Materials | Discovered new exit (range 16) 601 | -10/Materials | Core integrity fell below 50% 641 | -10/Materials | Lost 4 parts (2n1u1w) 695 | -10/Materials | Identified exit to Mines 737 | -10/Materials | Discovered new exit (range 13) 757 | -10/Materials | Entered another Materials area 757 | -9/Materials | Evolved 2 slots: Utility x2 931 | -9/Materials | Build established: Scavenger-Mutant 1256 | -9/Materials | Discovered new exit (range 8) 1310 | -9/Materials | Self-destructed Last Messages --------------- 01232_ U-05 Engineer suffers critical hit (Burn). 01232_ U-05 Engineer destroyed. 01233_ Acquired 3 matter. 01234_ K-01 Serf collects debris. 01239_ Dropped Lgt. Armor Plating. 01242_ Acquired 10 matter. 01243_ K-01 Serf collects debris. 01256_ EXIT=FOUND 01259_ W-16 Scout sends out distress signal. 01266_ Dropped Lgt. Armor Plating. 01278_ Dropped Heat Sink. 01278_ Acquired Imp. Datajack. 01281_ Dropped Beam Rifle. 01282_ Acquired Ion Cannon. 01295_ Wheel destroyed. 01305_ C-30 ARC bursts open, deploying its payload. 01305_ L-31 Rogue unfolds itself. 01305_ G-34 Mercenary unfolds itself. 01305_ K-01 Serf destroyed. 01307_ Ion Engine destroyed. Map ----- +----------------------------------------------------+ | | | ?????????????????????????????????????????????????? | | ?????????????????????????????????????????????????? | | ?????????????????????????????????????????????????? | | ?????????????????????????????????????????????????? | | ?????????????????????????????????????????????????? | | ?????????????????????????????????????????????????? | | ?????????????????????????????????????????????????? | | ?????????????????????????????????????????????????? | | ?????????????????????????????????????????????????? | | ?????????????????????????????????????????????????? | | ?????????????????????????????????????????????????? | | ?????????????????????????????????????????????????? | | ???????????????????????? #### ? # ?????????? | | ????????????????????????######## # ?????????? | | ????????????????????????## # # ?????????? | | ???????????????????????? # # ?????????? | | ?????????????????????????? # # ?????????? | | ?????????????????????????? # # ?????????? | | ?????????????????????????# # + ?????????? | | ???????????????????#####?## # ?????????? | | ?????????????? ############ # ?????? | | ?????????????? ######; #### ######?????? | | ?????????????? # Y ## ?????? | | ?????????????? #t"S !! ## ##????????? | | ?????????????? # """ ! @s w ##????????? | | ?????????????? # ""ss s## l g g ##????????? | | ?????????? / + """ ### w%! m ##????????? | | ?????????? # # """?### ###### ###????????? | | ?????????? # # """??## [[## ? ###????????? | | ?????????? # # ??## [[##?? # ?????????? | | ?????????? # #########??## ]]##??????????????? | | ??????????## #########??## [ ]##??????????????? | | ??????????## ##########?## //##??????????????? | | ?????????? # ##########?## ! /##??????????????? | | ##?????? # ## =| ##?## ######??????????????? | | ####?????? # ## !| ##?## ######??????????????? | | ?????? # ## | ##### ####????????????????? | | ##?????? + ## #####+####????????????????? | | ##????? # ##[ * ## ##????????????????? | | ##?????### ## = ##!!* ##????????????????? | | ##?????## ##+######!* ##????????????????? | | ######### ! % % *%! #!* ##????????????????? | | #########%* # ! ##????????????????? | | *%*|! !% + ##????????????????? | | !#! ##### #########????????????????? | | """ ###+####### ## ????????????????? | | """!!# ##" # ??????????????????????? | | """%!# ##"" # ??????????????????????? | | = # ##!! # ??????????????????????? | +----------------------------------------------------+ Best States ------------- Heat Dissipation 42 Energy Generation 10 Energy Capacity 250 Matter Stores 300 Matter Capacity 300 Sight Range 16 Terrain Scan Range 16 Terrain Scan Density 10 Armor Coverage 150 Evasion (%) 44 Item Schematics ----------------- None Robot Schematics ------------------ None Fabricated ------------ Nothing Alien Tech Used ----------------- None Achievements -------------- None Challenges ------------ None Game ------ Seed MinesnifferShadeArchive Manual? 0 Play Time 00:23:58 Cumulative 24.6 hours Start 2024.05.01 @ 12:57:56 End 2024.05.02 @ 09:25:33 Sessions 5 Manual Loads 0 Difficulty Rogue Special Mode None Game No. 34 Rogue 26 Adventurer 8 Explorer 0 Win Type - Total 0 Types 0/0/0/0/0/0/0/0/0 Lore% 27 Gallery% 34 Achievement% 26 Wizard Run 0 Options --------- Layout 1 ASCII 0 Keyboard 0 Movement Arrows Keybinds 0 Fullscreen 1 Font 16/SmallcapsGlow Map View 55x38 Zoom Use 0% Tactical HUD 1 Map Filters NONE Filters NONE Steam 1 RUN: 82105604-f077-45d6-aa37-e70c197013b0